[Event "Turkish Club Cup 2019"]
[Site "Konya"]
[Date "2019.07.19"]
[Round "6"]
[White "Uzgur, Arda"]
[Black "Erten, Erce"]
[Result "1-0"]
[ECO "B38"]
[WhiteElo "1480"]
[BlackElo "1225"]
[Annotator "NA"]
[PlyCount "75"]
[EventDate "2019.07.16"]
[EventType "team-tourn"]
[EventCountry "TUR"]
[SourceTitle "playchess.com"]
[Source "ChessBase"]
[SourceQuality "1"]
[TimeControl "5400+30"]

1. e4 {[%emt 0:00:30]} c5 {[%emt 0:00:30]} 2. c4 {[%emt 0:00:30]} Nc6 {[%emt 0:00:00]} 3. Ne2 {[%emt 0:00:00]} g6 {[%emt 0:01:00]} 4. d4 {[%emt 0:00:00]} cxd4 {[%emt 0:00:30]} 5. Nxd4 {[%emt 0:00:00]} Bg7 {[%emt 0:00:00]} 6. Be3 {[%emt 0:00:00]} d6 {[%emt 0:01:00]} 7. Nc3 {[%emt 0:00:00]} a6 {[%emt 0:00:30]} 8. Be2 {[%emt 0:00:00]} Nf6 {[%emt 0:00:30]} 9. f3 {[%emt 0:00:30]} Bd7 {[%emt 0:02:30]} 10. Qd2 {[%emt 0:01:30]} Qc7 {[%emt 0:02:30]} 11. O-O {[%emt 0:01:30]} O-O {[%emt 0:00:30]} 12. Rac1 {[%emt 0:01:30]} Rac8 {[%emt 0:03:30]} 13. Rfd1 {[%emt 0:06:30]} Rfe8 {[%emt 0:02:30]} 14. Nd5 {[%emt 0:04:30]} Qd8 {[%emt 0:02:30]} 15. Nxc6 {[%emt 0:01:30]} Bxc6 {[%emt 0:05:30]} 16. Bd4 {[%emt 0:14:30]} Nd7 {[%emt 0:07:30]} 17. Be3 {[%emt 0:06:30]} Bxd5 {[%emt 0:10:30]} 18. exd5 {[%emt 0:00:30]} Nf6 {[%emt 0:01:30]} 19. b4 {[%emt 0:03:30]} Qd7 {[%emt 0:01:30]} 20. c5 {[%emt 0:05:30]} dxc5 {[%emt 0:01:30]} 21. bxc5 {[%emt 0:00:30]} Red8 {[%emt 0:01:30]} 22. c6 {[%emt 0:07:30]} bxc6 {[%emt 0:06:30]} 23. dxc6 {[%emt 0:00:30]} Qxd2 {[%emt 0:02:30]} 24. Rxd2 {[%emt 0:00:30]} Rxd2 {[%emt 0:08:30]} 25. Bxd2 {[%emt 0:02:30]} Nd5 {[%emt 0:01:30]} 26. Bxa6 {[%emt 0:02:30]} Ra8 {[%emt 0:01:30]} 27. Bc4 {[%emt 0:05:30]} Bd4+ {[%emt 0:03:30]} 28. Kf1 {[%emt 0:02:30]} Ne3+ {[%emt 0:01:30]} 29. Ke2 {[%emt 0:00:30]} Nxc4 {[%emt 0:04:30]} 30. Rxc4 {[%emt 0:00:30]} Bb6 {[%emt 0:02:30]} 31. Rb4 {[%emt 0:15:43]} Bc7 {[%emt 0:03:30]} 32. a4 {[%emt 0:02:07]} Bxh2 {[%emt 0:02:30]} 33. f4 {[%emt 0:01:37]} Bg1 {[%emt 0:00:46]} 34. c7 {[%emt 0:01:31]} Ba7 {[%emt 0:03:24]} 35. Rb7 {[%emt 0:00:17]} Kg7 {[%emt 0:01:43]} 36. Rxa7 {[%emt 0:00:10]} Rc8 {[%emt 0:00:22]} 37. Ba5 {[%emt 0:00:16]} h5 {[%emt 0:00:22]} 38. Rb7 {[%emt 0:00:03]} 1-0

[Event "Turkish Club Cup 2019"]
[Site "Konya"]
[Date "2019.07.19"]
[Round "6"]
[White "Karasakal, Deniz"]
[Black "Gur, Tuba"]
[Result "0-1"]
[ECO "B22"]
[WhiteElo "1430"]
[BlackElo "1747"]
[Annotator "NA"]
[PlyCount "142"]
[EventDate "2019.07.16"]
[EventType "team-tourn"]
[EventCountry "TUR"]
[SourceTitle "playchess.com"]
[Source "ChessBase"]
[SourceQuality "1"]
[TimeControl "5400+30"]

1. e4 {[%emt 0:00:30]} c5 {[%emt 0:00:30]} 2. c3 {[%emt 0:00:30]} e6 {[%emt 0:00:30]} 3. d4 {[%emt 0:00:00]} cxd4 {[%emt 0:00:00]} 4. cxd4 {[%emt 0:00:00]} Nf6 {[%emt 0:00:00]} 5. e5 {[%emt 0:05:30]} Nd5 {[%emt 0:00:00]} 6. Nf3 {[%emt 0:00:30]} Qc7 {[%emt 0:00:00]} 7. Bd2 {[%emt 0:01:30]} Nc6 {[%emt 0:06:30]} 8. Nc3 {[%emt 0:02:30]} Nxc3 {[%emt 0:00:30]} 9. bxc3 {[%emt 0:00:30]} d6 {[%emt 0:01:30]} 10. exd6 {[%emt 0:09:30]} Bxd6 {[%emt 0:00:30]} 11. Bd3 {[%emt 0:01:30]} b6 {[%emt 0:02:30]} 12. Qe2 {[%emt 0:01:30]} Ne7 {[%emt 0:03:30]} 13. Be4 {[%emt 0:02:30]} Bb7 {[%emt 0:01:30]} 14. Bxb7 {[%emt 0:00:30]} Qxb7 {[%emt 0:00:00]} 15. O-O {[%emt 0:00:30]} O-O {[%emt 0:01:00]} 16. Ne5 {[%emt 0:00:30]} Rac8 {[%emt 0:05:30]} 17. f4 {[%emt 0:03:30]} Qd5 {[%emt 0:03:30]} 18. Qf3 {[%emt 0:08:30]} Qxf3 {[%emt 0:07:30]} 19. Rxf3 {[%emt 0:00:30]} Bxe5 {[%emt 0:00:00]} 20. fxe5 {[%emt 0:01:30]} Rc4 {[%emt 0:00:00]} 21. a4 {[%emt 0:11:30]} Nd5 {[%emt 0:09:30]} 22. Kf2 {[%emt 0:00:30]} Rfc8 {[%emt 0:02:30]} 23. Ra3 {[%emt 0:00:30]} Kf8 {[%emt 0:07:30]} 24. Ke2 {[%emt 0:00:30]} Ke8 {[%emt 0:00:00]} 25. Kd3 {[%emt 0:02:30]} R8c7 {[%emt 0:01:00]} 26. Rh3 {[%emt 0:08:30]} h6 {[%emt 0:00:30]} 27. Rg3 {[%emt 0:00:00]} Kf8 {[%emt 0:01:30]} 28. Rg4 {[%emt 0:04:00]} Ne7 {[%emt 0:02:30]} 29. Re4 {[%emt 0:04:30]} Nf5 {[%emt 0:04:30]} 30. Be1 {[%emt 0:02:30]} g6 {[%emt 0:04:30]} 31. g4 {[%emt 0:00:30]} Ne7 {[%emt 0:01:30]} 32. Kc2 {[%emt 0:02:30]} Rb4 {[%emt 0:02:30]} 33. Bd2 {[%emt 0:02:30]} Kg7 {[%emt 0:00:30]} 34. Kd3 {[%emt 0:01:30]} Rbc4 {[%emt 0:00:30]} 35. h3 {[%emt 0:04:14]} g5 {[%emt 0:02:30]} 36. h4 {[%emt 0:04:59]} gxh4 {[%emt 0:00:30]} 37. g5 {[%emt 0:00:16]} h5 {[%emt 0:01:30]} 38. Rxh4 {[%emt 0:00:36]} Kg6 {[%emt 0:00:30]} 39. Ra1 {[%emt 0:03:19]} Nf5 {[%emt 0:00:30]} 40. Rh3 {[%emt 0:00:56]} Rc8 {[%emt 0:00:30]} 41. Ke4 {[%emt 0:04:53]} Rd8 {[%emt 0:04:30]} 42. Rd3 {[%emt 0:02:20]} Rd5 {[%emt 0:00:30]} 43. Be3 {[%emt 0:03:10]} Ra5 {[%emt 0:01:30]} 44. Kf4 {[%emt 0:01:19]} Rcxa4 {[%emt 0:00:30]} 45. Rxa4 {[%emt 0:00:43]} Rxa4 {[%emt 0:00:00]} 46. Rd1 {[%emt 0:00:27]} Nxe3 {[%emt 0:03:00]} 47. Kxe3 {[%emt 0:00:30]} Kxg5 {[%emt 0:00:00]} 48. Rg1+ {[%emt 0:00:02]} Kh6 {[%emt 0:00:00]} 49. Rf1 {[%emt 0:00:27]} Rc4 {[%emt 0:00:30]} 50. Rxf7 {[%emt 0:01:04]} Rxc3+ {[%emt 0:00:30]} 51. Kd2 {[%emt 0:00:46]} Rc6 {[%emt 0:01:30]} 52. Rxa7 {[%emt 0:00:30]} h4 {[%emt 0:00:30]} 53. Ra3 {[%emt 0:00:25]} Kg5 {[%emt 0:00:00]} 54. Ke1 {[%emt 0:01:04]} Kg4 {[%emt 0:01:00]} 55. Kf2 {[%emt 0:00:36]} Rc2+ {[%emt 0:02:30]} 56. Kg1 {[%emt 0:00:13]} h3 {[%emt 0:00:30]} 57. Ra8 {[%emt 0:00:19]} Kf5 {[%emt 0:01:30]} 58. Rh8 {[%emt 0:00:23]} h2+ {[%emt 0:00:30]} 59. Kh1 {[%emt 0:01:03]} b5 {[%emt 0:00:46]} 60. Rb8 {[%emt 0:00:32]} Rb2 {[%emt 0:00:14]} 61. Rb6 {[%emt 0:00:31]} b4 {[%emt 0:00:31]} 62. Rb7 {[%emt 0:00:48]} b3 {[%emt 0:00:37]} 63. Rb6 {[%emt 0:00:19]} Ke4 {[%emt 0:02:03]} 64. Rb4 {[%emt 0:00:30]} Kd5 {[%emt 0:00:30]} 65. Rb6 {[%emt 0:00:32]} Kxd4 {[%emt 0:00:00]} 66. Rb5 {[%emt 0:00:36]} Rb1+ {[%emt 0:03:04]} 67. Kxh2 {[%emt 0:00:04]} Kc4 {[%emt 0:00:09]} 68. Rb8 {[%emt 0:00:24]} Re1 {[%emt 0:00:36]} 69. Kg3 {[%emt 0:00:49]} Rxe5 {[%emt 0:00:42]} 70. Kf3 {[%emt 0:00:10]} Rb5 {[%emt 0:00:00]} 71. Rc8+ {[%emt 0:01:00]} Kb4 {[%emt 0:00:00]} 0-1

[Event "Turkish Club Cup 2019"]
[Site "Konya"]
[Date "2019.07.19"]
[Round "6"]
[White "Yalcin, Nehir"]
[Black "Sural, Ceren"]
[Result "1/2-1/2"]
[ECO "B01"]
[WhiteElo "1392"]
[BlackElo "1622"]
[Annotator "NA"]
[PlyCount "112"]
[EventDate "2019.07.16"]
[EventType "team-tourn"]
[EventCountry "TUR"]
[SourceTitle "playchess.com"]
[Source "ChessBase"]
[SourceQuality "1"]
[TimeControl "5400+30"]

1. e4 {[%emt 0:00:30]} d5 {[%emt 0:00:30]} 2. exd5 {[%emt 0:00:00]} Qxd5 {[%emt 0:00:00]} 3. Nc3 {[%emt 0:00:00]} Qd8 {[%emt 0:00:00]} 4. d4 {[%emt 0:00:30]} Nf6 {[%emt 0:00:00]} 5. Nf3 {[%emt 0:00:30]} Bg4 {[%emt 0:01:00]} 6. Be2 {[%emt 0:01:30]} e6 {[%emt 0:01:30]} 7. h3 {[%emt 0:02:30]} Bxf3 {[%emt 0:04:30]} 8. Bxf3 {[%emt 0:00:30]} c6 {[%emt 0:00:00]} 9. a3 {[%emt 0:07:30]} Nbd7 {[%emt 0:05:00]} 10. Be3 {[%emt 0:04:30]} Nb6 {[%emt 0:01:30]} 11. Qd3 {[%emt 0:01:30]} Be7 {[%emt 0:05:30]} 12. O-O-O {[%emt 0:04:30]} a6 {[%emt 0:06:30]} 13. g4 {[%emt 0:12:30]} Nfd5 {[%emt 0:05:30]} 14. Bd2 {[%emt 0:01:30]} Nxc3 {[%emt 0:01:30]} 15. Qxc3 {[%emt 0:02:30]} Nd5 {[%emt 0:05:30]} 16. Qd3 {[%emt 0:01:30]} a5 {[%emt 0:14:30]} 17. Be4 {[%emt 0:06:30]} Nf6 {[%emt 0:04:30]} 18. Bg2 {[%emt 0:00:30]} Qc7 {[%emt 0:02:30]} 19. f4 {[%emt 0:04:30]} b6 {[%emt 0:11:30]} 20. Rhf1 {[%emt 0:07:30]} O-O-O {[%emt 0:03:30]} 21. g5 {[%emt 0:06:30]} Ne8 {[%emt 0:02:30]} 22. f5 {[%emt 0:07:30]} exf5 {[%emt 0:03:30]} 23. Qxf5+ {[%emt 0:01:30]} Rd7 {[%emt 0:00:30]} 24. Qe4 {[%emt 0:07:23]} Kb7 {[%emt 0:00:48]} 25. Be3 {[%emt 0:03:25]} Nd6 {[%emt 0:01:29]} 26. Qf3 {[%emt 0:00:26]} f6 {[%emt 0:02:21]} 27. h4 {[%emt 0:03:52]} fxg5 {[%emt 0:02:28]} 28. hxg5 {[%emt 0:00:13]} Bd8 {[%emt 0:01:55]} 29. Qg4 {[%emt 0:01:55]} Re7 {[%emt 0:02:17]} 30. Bf4 {[%emt 0:00:48]} Qd7 {[%emt 0:02:21]} 31. Qg3 {[%emt 0:02:41]} Nf5 {[%emt 0:00:59]} 32. Qd3 {[%emt 0:00:40]} Rf8 {[%emt 0:02:22]} 33. d5 {[%emt 0:00:33]} Ka7 {[%emt 0:03:15]} 34. dxc6 {[%emt 0:00:44]} Qxd3 {[%emt 0:01:05]} 35. Rxd3 {[%emt 0:01:01]} Bc7 {[%emt 0:01:43]} 36. Bxc7 {[%emt 0:01:00]} Rxc7 {[%emt 0:00:12]} 37. Be4 {[%emt 0:00:52]} g6 {[%emt 0:00:22]} 38. Rfd1 {[%emt 0:00:29]} Rfc8 {[%emt 0:01:10]} 39. Rd7 {[%emt 0:00:46]} Kb8 {[%emt 0:00:11]} 40. Rh1 {[%emt 0:01:43]} Ng3 {[%emt 0:01:12]} 41. Rh4 {[%emt 0:00:16]} Nxe4 {[%emt 0:01:01]} 42. Rxe4 {[%emt 0:00:01]} Rxd7 {[%emt 0:00:31]} 43. cxd7 {[%emt 0:00:03]} Rd8 {[%emt 0:00:05]} 44. Re7 {[%emt 0:01:29]} Kc7 {[%emt 0:00:30]} 45. Rxh7 {[%emt 0:00:30]} Rxd7 {[%emt 0:00:00]} 46. Rh6 {[%emt 0:00:00]} Rd6 {[%emt 0:00:00]} 47. c3 {[%emt 0:00:06]} Kc6 {[%emt 0:00:33]} 48. Kc2 {[%emt 0:00:13]} Kc5 {[%emt 0:00:01]} 49. b4+ {[%emt 0:00:55]} axb4 {[%emt 0:00:25]} 50. axb4+ {[%emt 0:00:04]} Kd5 {[%emt 0:00:46]} 51. Rh1 {[%emt 0:00:37]} Ke5 {[%emt 0:00:41]} 52. Rf1 {[%emt 0:00:30]} Rc6 {[%emt 0:00:06]} 53. Kb3 {[%emt 0:00:39]} b5 {[%emt 0:00:33]} 54. Rf3 {[%emt 0:01:19]} Rd6 {[%emt 0:01:18]} 55. c4 {[%emt 0:03:31]} Ke4 {[%emt 0:00:30]} 56. Rf6 {[%emt 0:00:30]} Rd3+ {[%emt 0:00:30]} 1/2-1/2

[Event "Turkish Club Cup 2019"]
[Site "Konya"]
[Date "2019.07.19"]
[Round "6"]
[White "Yalcin, Sudenaz"]
[Black "Kucuk, Aybike"]
[Result "0-1"]
[ECO "B44"]
[WhiteElo "1371"]
[BlackElo "1266"]
[Annotator "NA"]
[PlyCount "113"]
[EventDate "2019.07.16"]
[EventType "team-tourn"]
[EventCountry "TUR"]
[SourceTitle "playchess.com"]
[Source "ChessBase"]
[SourceQuality "1"]
[TimeControl "5400+30"]

1. e4 {[%emt 0:00:30]} c5 {[%emt 0:00:30]} 2. Nf3 {[%emt 0:00:30]} e6 {[%emt 0:00:00]} 3. c4 {[%emt 0:00:00]} Nc6 {[%emt 0:00:00]} 4. d4 {[%emt 0:00:00]} cxd4 {[%emt 0:01:30]} 5. Nxd4 {[%emt 0:00:00]} Nge7 {[%emt 0:00:30]} 6. Nc3 {[%emt 0:00:00]} g6 {[%emt 0:00:30]} 7. f3 {[%emt 0:00:30]} Bg7 {[%emt 0:00:30]} 8. Be3 {[%emt 0:00:30]} a6 {[%emt 0:04:30]} 9. Be2 {[%emt 0:02:30]} d6 {[%emt 0:01:30]} 10. Qd2 {[%emt 0:00:00]} Bd7 {[%emt 0:00:30]} 11. O-O {[%emt 0:00:00]} O-O {[%emt 0:00:30]} 12. Rfc1 {[%emt 0:01:30]} Rc8 {[%emt 0:02:30]} 13. Bf1 {[%emt 0:02:30]} Ne5 {[%emt 0:04:30]} 14. b3 {[%emt 0:01:30]} Re8 {[%emt 0:09:30]} 15. Qf2 {[%emt 0:01:30]} N7c6 {[%emt 0:03:30]} 16. Rab1 {[%emt 0:05:30]} Nb4 {[%emt 0:06:30]} 17. Rd1 {[%emt 0:04:30]} Qe7 {[%emt 0:03:30]} 18. a3 {[%emt 0:05:30]} Nbc6 {[%emt 0:00:30]} 19. Nxc6 {[%emt 0:00:30]} Nxc6 {[%emt 0:02:30]} 20. Na4 {[%emt 0:00:30]} f5 {[%emt 0:09:30]} 21. Nb6 {[%emt 0:30:30]} Rcd8 {[%emt 0:00:00]} 22. Qg3 {[%emt 0:12:30]} Be5 {[%emt 0:06:00]} 23. f4 {[%emt 0:00:30]} Bg7 {[%emt 0:00:30]} 24. exf5 {[%emt 0:00:30]} exf5 {[%emt 0:00:30]} 25. Nd5 {[%emt 0:00:30]} Qf7 {[%emt 0:00:30]} 26. Be2 {[%emt 0:00:30]} Nd4 {[%emt 0:00:30]} 27. Bxd4 {[%emt 0:00:30]} Bxd4+ {[%emt 0:00:30]} 28. Rxd4 {[%emt 0:00:30]} Rxe2 {[%emt 0:00:30]} 29. Qg5 {[%emt 0:00:30]} Rf8 {[%emt 0:00:30]} 30. Rbd1 {[%emt 0:01:30]} Qe6 {[%emt 0:05:30]} 31. Qh4 {[%emt 0:07:30]} Bc6 {[%emt 0:06:30]} 32. R4d3 {[%emt 0:00:30]} Bxd5 {[%emt 0:00:30]} 33. cxd5 {[%emt 0:00:30]} Qe4 {[%emt 0:00:30]} 34. Qg3 {[%emt 0:00:30]} Re8 {[%emt 0:05:30]} 35. Qf3 {[%emt 0:00:30]} Qxf3 {[%emt 0:00:30]} 36. Rxf3 {[%emt 0:00:30]} Ra2 {[%emt 0:01:30]} 37. a4 {[%emt 0:01:30]} Ree2 {[%emt 0:02:30]} 38. Rg3 {[%emt 0:01:30]} Rf2 {[%emt 0:06:38]} 39. Re1 {[%emt 0:01:07]} Rxf4 {[%emt 0:02:04]} 40. Rge3 {[%emt 0:05:56]} Rff2 {[%emt 0:04:41]} 41. Re8+ {[%emt 0:00:30]} Kg7 {[%emt 0:00:44]} 42. R1e7+ {[%emt 0:01:52]} Kf6 {[%emt 0:00:21]} 43. Re6+ {[%emt 0:00:58]} Kg5 {[%emt 0:00:30]} 44. Rxd6 {[%emt 0:00:30]} Rxg2+ {[%emt 0:00:30]} 45. Kh1 {[%emt 0:00:30]} Rxh2+ {[%emt 0:00:30]} 46. Kg1 {[%emt 0:00:30]} Rhd2 {[%emt 0:00:22]} 47. Re1 {[%emt 0:03:18]} Rg2+ {[%emt 0:00:00]} 48. Kh1 {[%emt 0:00:30]} Rh2+ {[%emt 0:00:00]} 49. Kg1 {[%emt 0:00:30]} Rag2+ {[%emt 0:00:12]} 50. Kf1 {[%emt 0:00:30]} Rh1+ {[%emt 0:00:30]} 51. Kxg2 {[%emt 0:00:30]} Rxe1 {[%emt 0:00:30]} 52. Kf2 {[%emt 0:00:00]} Re7 {[%emt 0:01:37]} 53. b4 {[%emt 0:00:22]} Kf4 {[%emt 0:00:30]} 54. Re6 {[%emt 0:00:30]} Rd7 {[%emt 0:00:30]} 55. d6 {[%emt 0:00:30]} g5 {[%emt 0:00:00]} 56. Ke2 {[%emt 0:00:43]} g4 {[%emt 0:00:23]} 57. Kf2 {[%emt 0:00:00]} 0-1

[Event "Turkish Club Cup 2019"]
[Site "Konya"]
[Date "2019.07.19"]
[Round "6"]
[White "Gul, Zeynep"]
[Black "Hekimoglu, Mihriban"]
[Result "1/2-1/2"]
[ECO "D12"]
[WhiteElo "1359"]
[BlackElo "1440"]
[Annotator "NA"]
[PlyCount "85"]
[EventDate "2019.07.16"]
[EventType "team-tourn"]
[EventCountry "TUR"]
[SourceTitle "playchess.com"]
[Source "ChessBase"]
[SourceQuality "1"]
[TimeControl "5400+30"]

1. Nf3 {[%emt 0:00:30]} d5 {[%emt 0:00:30]} 2. d4 {[%emt 0:00:00]} Nf6 {[%emt 0:00:30]} 3. e3 {[%emt 0:00:00]} Bf5 {[%emt 0:04:30]} 4. c4 {[%emt 0:01:30]} c6 {[%emt 0:02:30]} 5. Nc3 {[%emt 0:01:30]} e6 {[%emt 0:01:30]} 6. Be2 {[%emt 0:01:30]} Bd6 {[%emt 0:03:30]} 7. O-O {[%emt 0:01:30]} h6 {[%emt 0:01:30]} 8. b3 {[%emt 0:02:30]} O-O {[%emt 0:03:30]} 9. Bb2 {[%emt 0:00:30]} Nbd7 {[%emt 0:00:30]} 10. h3 {[%emt 0:09:30]} Ne4 {[%emt 0:05:30]} 11. Nxe4 {[%emt 0:04:30]} dxe4 {[%emt 0:02:30]} 12. Nd2 {[%emt 0:01:30]} Qg5 {[%emt 0:06:30]} 13. Bg4 {[%emt 0:01:30]} Nf6 {[%emt 0:04:30]} 14. Bxf5 {[%emt 0:04:30]} exf5 {[%emt 0:00:30]} 15. Re1 {[%emt 0:09:30]} f4 {[%emt 0:09:30]} 16. exf4 {[%emt 0:04:30]} Qxf4 {[%emt 0:01:30]} 17. Nf1 {[%emt 0:00:30]} g5 {[%emt 0:10:30]} 18. Qd2 {[%emt 0:08:30]} Qf5 {[%emt 0:00:30]} 19. d5 {[%emt 0:06:30]} Rfe8 {[%emt 0:16:30]} 20. Bxf6 {[%emt 0:07:30]} Qxf6 {[%emt 0:01:30]} 21. dxc6 {[%emt 0:00:30]} bxc6 {[%emt 0:00:30]} 22. Rad1 {[%emt 0:06:30]} Rad8 {[%emt 0:02:54]} 23. Qe3 {[%emt 0:02:30]} Qe5 {[%emt 0:15:04]} 24. Qg3 {[%emt 0:10:19]} Qxg3 {[%emt 0:02:15]} 25. Nxg3 {[%emt 0:00:14]} Bxg3 {[%emt 0:01:47]} 26. fxg3 {[%emt 0:00:09]} f5 {[%emt 0:01:07]} 27. g4 {[%emt 0:03:05]} fxg4 {[%emt 0:00:46]} 28. Rxd8 {[%emt 0:01:54]} Rxd8 {[%emt 0:00:02]} 29. Rxe4 {[%emt 0:00:11]} gxh3 {[%emt 0:00:15]} 30. gxh3 {[%emt 0:00:12]} Kf7 {[%emt 0:00:33]} 31. Re3 {[%emt 0:03:01]} Kf6 {[%emt 0:00:51]} 32. a3 {[%emt 0:01:18]} a5 {[%emt 0:00:31]} 33. b4 {[%emt 0:01:48]} axb4 {[%emt 0:00:30]} 34. axb4 {[%emt 0:00:00]} Rb8 {[%emt 0:00:27]} 35. Rb3 {[%emt 0:00:55]} Ke5 {[%emt 0:00:07]} 36. Re3+ {[%emt 0:01:21]} Kd4 {[%emt 0:00:08]} 37. Re6 {[%emt 0:00:11]} Rxb4 {[%emt 0:00:46]} 38. Rxc6 {[%emt 0:00:14]} Rxc4 {[%emt 0:00:10]} 39. Rxh6 {[%emt 0:00:28]} Ke3 {[%emt 0:00:32]} 40. Kg2 {[%emt 0:02:27]} Rh4 {[%emt 0:01:38]} 41. Rxh4 {[%emt 0:00:43]} gxh4 {[%emt 0:00:05]} 42. Kg1 {[%emt 0:00:07]} Kf3 {[%emt 0:00:06]} 43. Kh2 {[%emt 0:00:00]} 1/2-1/2

[Event "Turkish Club Cup 2019"]
[Site "Konya"]
[Date "2019.07.19"]
[Round "6"]
[White "Ozturk, Nil"]
[Black "Dogan, Eylem Su"]
[Result "0-1"]
[ECO "B31"]
[WhiteElo "1345"]
[BlackElo "1285"]
[Annotator "NA"]
[PlyCount "66"]
[EventDate "2019.07.16"]
[EventType "team-tourn"]
[EventCountry "TUR"]
[SourceTitle "playchess.com"]
[Source "ChessBase"]
[SourceQuality "1"]
[TimeControl "5400+30"]

1. e4 {[%emt 0:00:30]} c5 {[%emt 0:00:30]} 2. Nf3 {[%emt 0:00:30]} Nc6 {[%emt 0:00:30]} 3. Bb5 {[%emt 0:00:00]} Nf6 {[%emt 0:00:30]} 4. e5 {[%emt 0:02:00]} Nd5 {[%emt 0:05:30]} 5. O-O {[%emt 0:00:30]} g6 {[%emt 0:03:30]} 6. Re1 {[%emt 0:00:30]} Bg7 {[%emt 0:01:30]} 7. c3 {[%emt 0:00:30]} O-O {[%emt 0:02:30]} 8. d4 {[%emt 0:01:30]} cxd4 {[%emt 0:09:30]} 9. cxd4 {[%emt 0:00:00]} Qb6 {[%emt 0:02:30]} 10. Bc4 {[%emt 0:06:00]} Nc7 {[%emt 0:08:30]} 11. Nc3 {[%emt 0:03:30]} Qb4 {[%emt 0:09:30]} 12. Qb3 {[%emt 0:04:30]} Qxb3 {[%emt 0:01:30]} 13. Bxb3 {[%emt 0:00:30]} d6 {[%emt 0:09:30]} 14. h3 {[%emt 0:13:30]} dxe5 {[%emt 0:03:30]} 15. dxe5 {[%emt 0:02:30]} Be6 {[%emt 0:03:30]} 16. Bf4 {[%emt 0:04:30]} Bxb3 {[%emt 0:02:30]} 17. axb3 {[%emt 0:00:30]} Ne6 {[%emt 0:00:30]} 18. Bg3 {[%emt 0:00:30]} Ned4 {[%emt 0:06:30]} 19. Nxd4 {[%emt 0:00:30]} Nxd4 {[%emt 0:00:00]} 20. Rad1 {[%emt 0:01:30]} Rfd8 {[%emt 0:05:00]} 21. b4 {[%emt 0:05:30]} Rd7 {[%emt 0:04:31]} 22. e6 {[%emt 0:13:30]} fxe6 {[%emt 0:02:52]} 23. Rxe6 {[%emt 0:00:30]} Rad8 {[%emt 0:01:07]} 24. Ree1 {[%emt 0:01:30]} Kf8 {[%emt 0:08:21]} 25. Kf1 {[%emt 0:01:30]} Nc2 {[%emt 0:02:46]} 26. Rxd7 {[%emt 0:00:30]} Rxd7 {[%emt 0:00:00]} 27. Re4 {[%emt 0:01:30]} Rd4 {[%emt 0:02:38]} 28. Rxd4 {[%emt 0:02:30]} Nxd4 {[%emt 0:00:18]} 29. Bb8 {[%emt 0:00:30]} Nc6 {[%emt 0:01:04]} 30. Bf4 {[%emt 0:00:30]} Nxb4 {[%emt 0:00:23]} 31. Ke2 {[%emt 0:00:30]} Ke8 {[%emt 0:00:36]} 32. Kd2 {[%emt 0:00:30]} Kd7 {[%emt 0:00:21]} 33. b3 {[%emt 0:01:30]} Bxc3+ {[%emt 0:00:11]} 0-1

[Event "Turkish Club Cup 2019"]
[Site "Konya"]
[Date "2019.07.19"]
[Round "6"]
[White "Cankurtaran, Merve"]
[Black "Haktanirlar, Zeren"]
[Result "1-0"]
[ECO "D11"]
[WhiteElo "1335"]
[BlackElo "1294"]
[Annotator "NA"]
[PlyCount "109"]
[EventDate "2019.07.16"]
[EventType "team-tourn"]
[EventCountry "TUR"]
[SourceTitle "playchess.com"]
[Source "ChessBase"]
[SourceQuality "1"]
[TimeControl "5400+30"]

1. d4 {[%emt 0:00:30]} d5 {[%emt 0:00:30]} 2. Nf3 {[%emt 0:00:30]} Nf6 {[%emt 0:00:00]} 3. g3 {[%emt 0:00:00]} Bf5 {[%emt 0:01:00]} 4. Bg2 {[%emt 0:00:00]} h6 {[%emt 0:01:30]} 5. O-O {[%emt 0:01:30]} e6 {[%emt 0:00:30]} 6. c4 {[%emt 0:02:30]} c6 {[%emt 0:00:30]} 7. Qb3 {[%emt 0:04:30]} Qc8 {[%emt 0:02:30]} 8. Nc3 {[%emt 0:03:30]} Bd6 {[%emt 0:03:30]} 9. Nd2 {[%emt 0:11:30]} Nbd7 {[%emt 0:05:30]} 10. e4 {[%emt 0:02:30]} dxe4 {[%emt 0:04:30]} 11. Ndxe4 {[%emt 0:01:30]} Nxe4 {[%emt 0:02:30]} 12. Nxe4 {[%emt 0:00:30]} Bxe4 {[%emt 0:05:30]} 13. Bxe4 {[%emt 0:00:00]} Nf6 {[%emt 0:00:30]} 14. Bg2 {[%emt 0:02:00]} O-O {[%emt 0:03:30]} 15. f4 {[%emt 0:09:30]} Rd8 {[%emt 0:05:30]} 16. Qf3 {[%emt 0:04:30]} Bc7 {[%emt 0:07:30]} 17. Be3 {[%emt 0:01:30]} Bb6 {[%emt 0:02:30]} 18. Rad1 {[%emt 0:02:30]} c5 {[%emt 0:20:30]} 19. d5 {[%emt 0:14:30]} exd5 {[%emt 0:02:30]} 20. cxd5 {[%emt 0:00:30]} Rd6 {[%emt 0:03:30]} 21. Rf2 {[%emt 0:01:30]} Qd7 {[%emt 0:06:35]} 22. Rfd2 {[%emt 0:05:30]} Rd8 {[%emt 0:02:05]} 23. h3 {[%emt 0:05:30]} c4 {[%emt 0:02:37]} 24. Bxb6 {[%emt 0:02:30]} axb6 {[%emt 0:03:46]} 25. b3 {[%emt 0:01:30]} b5 {[%emt 0:00:50]} 26. b4 {[%emt 0:03:16]} Ra8 {[%emt 0:03:11]} 27. a3 {[%emt 0:00:55]} Rd8 {[%emt 0:00:51]} 28. g4 {[%emt 0:01:42]} Qc7 {[%emt 0:01:24]} 29. f5 {[%emt 0:02:41]} Ra8 {[%emt 0:02:06]} 30. Qc3 {[%emt 0:00:53]} Qb6+ {[%emt 0:01:42]} 31. Kf1 {[%emt 0:01:15]} Qa6 {[%emt 0:01:06]} 32. Ra1 {[%emt 0:00:53]} Rad8 {[%emt 0:01:32]} 33. Rad1 {[%emt 0:02:07]} Qb6 {[%emt 0:00:14]} 34. Rd4 {[%emt 0:01:14]} Kf8 {[%emt 0:00:33]} 35. a4 {[%emt 0:02:15]} Rc8 {[%emt 0:01:08]} 36. a5 {[%emt 0:00:51]} Qc7 {[%emt 0:00:24]} 37. Re1 {[%emt 0:00:55]} Qd7 {[%emt 0:00:44]} 38. Re5 {[%emt 0:01:44]} Re8 {[%emt 0:01:15]} 39. Rd2 {[%emt 0:01:53]} Rxe5 {[%emt 0:01:00]} 40. Qxe5 {[%emt 0:00:06]} Qe7 {[%emt 0:00:15]} 41. Qxe7+ {[%emt 0:01:45]} Kxe7 {[%emt 0:00:05]} 42. Ke2 {[%emt 0:00:26]} Kd7 {[%emt 0:01:17]} 43. Ke3 {[%emt 0:00:35]} Kc7 {[%emt 0:01:06]} 44. Kd4 {[%emt 0:00:53]} Rd8 {[%emt 0:01:05]} 45. Kc5 {[%emt 0:00:25]} Nd7+ {[%emt 0:01:01]} 46. Kxb5 {[%emt 0:00:20]} Ne5 {[%emt 0:00:07]} 47. Be4 {[%emt 0:02:43]} f6 {[%emt 0:00:37]} 48. Kc5 {[%emt 0:01:00]} Rd6 {[%emt 0:00:36]} 49. b5 {[%emt 0:00:16]} Kd7 {[%emt 0:00:38]} 50. Ra2 {[%emt 0:00:43]} Kc7 {[%emt 0:00:35]} 51. b6+ {[%emt 0:00:59]} Kd7 {[%emt 0:00:13]} 52. a6 {[%emt 0:00:09]} bxa6 {[%emt 0:00:08]} 53. b7 {[%emt 0:00:22]} Kc7 {[%emt 0:01:23]} 54. b8=Q+ {[%emt 0:00:40]} Kxb8 {[%emt 0:00:00]} 55. Kxd6 {[%emt 0:00:00]} 1-0